fUSD/lending_fUSD_20240708
["ID","MTS","AMOUNT","RATE_DAILY","PERIOD"]
[331473503,1720434245818,-211.070817,0.00043498,117]
[331473504,1720434245845,-225.87511993,0.00043698,120]
[331473505,1720434245871,-151.0,0.00043781,120]
[331473506,1720434245898,-233.070819,0.00043798,115]
[331473507,1720434245923,-1250.0,0.00043835,120]
[331473508,1720434245948,-1000.0,0.00043835,70]
[331473509,1720434245972,-1134.79398083,0.000439,120]
[331473510,1720434245997,-600.0,0.00043906,120]
[331473511,1720434246030,-50000.0,0.00044,34]
[331473512,1720434246058,-50000.0,0.00044,44]
[331473513,1720434246082,-200.0,0.00044,120]
[331473514,1720434246111,-655.256263,0.00044,57]
[331473515,1720434246135,-151.0,0.00044027,120]
[331473516,1720434246162,-211.070817,0.00044198,113]
[331473517,1720434246185,-500.0,0.00044352,30]
[331473518,1720434246209,-500.0,0.00044352,30]
[331473519,1720434246235,-500.0,0.00044352,30]
[331473520,1720434246260,-500.0,0.00044352,30]
[331473521,1720434246290,-500.0,0.00044352,30]
[331473522,1720434246316,-500.0,0.00044352,30]
[331473523,1720434246342,-500.0,0.00044352,30]
[331473524,1720434246367,-500.0,0.00044352,30]
[331473525,1720434246575,-500.0,0.00044352,30]
[331473526,1720434246599,-500.0,0.00044352,30]
[331473527,1720434246624,-500.0,0.00044352,30]
[331473528,1720434246649,-500.0,0.00044352,30]
[331473529,1720434246674,-500.0,0.00044352,30]
[331473530,1720434246699,-500.0,0.00044352,30]
[331473531,1720434246723,-500.0,0.00044352,30]
[331473532,1720434246748,-500.0,0.00044352,30]
[331473533,1720434246773,-500.0,0.00044352,30]
[331473534,1720434246807,-500.0,0.00044352,30]
[331473535,1720434246832,-500.0,0.00044352,30]
[331473536,1720434246857,-500.0,0.00044352,30]
[331473537,1720434246882,-500.0,0.00044352,30]
[331473538,1720434246908,-500.0,0.00044352,30]
[331473539,1720434246936,-500.0,0.00044352,30]
[331473540,1720434246961,-500.0,0.00044352,30]
[331473541,1720434246987,-500.0,0.00044352,30]
[331473542,1720434247018,-500.0,0.00044352,30]
[331473543,1720434247044,-500.0,0.00044352,30]
[331473544,1720434247068,-500.0,0.00044352,30]
[331473545,1720434247091,-500.0,0.00044352,30]
[331473546,1720434247114,-500.0,0.00044352,30]
[331473547,1720434247137,-627.30667995,0.00044352,30]
[331473548,1720434247160,-500.0,0.00044352,30]
[331473549,1720434247182,-500.0,0.00044352,30]
[331473550,1720434247206,-500.0,0.00044352,30]
[331473551,1720434247229,-500.0,0.00044352,30]
[331473552,1720434247253,-500.0,0.00044352,30]
[331473553,1720434247278,-500.0,0.00044352,30]
[331473554,1720434247301,-500.0,0.00044352,30]
[331473555,1720434247325,-500.0,0.00044352,30]
[331473556,1720434247349,-500.0,0.00044352,30]
[331473557,1720434247372,-500.0,0.00044352,30]
[331473558,1720434247394,-500.0,0.00044352,30]
[331473559,1720434247417,-500.0,0.00044352,30]
[331473560,1720434247442,-500.0,0.00044352,30]
[331473561,1720434247466,-500.0,0.00044352,30]
[331473562,1720434247491,-500.0,0.00044352,30]
[331473563,1720434247515,-500.0,0.00044352,30]
[331473564,1720434247542,-500.0,0.00044352,30]
[331473565,1720434247565,-500.0,0.00044352,30]
[331473566,1720434247590,-500.0,0.00044352,30]
[331473567,1720434247614,-500.0,0.00044352,30]
[331473568,1720434247638,-500.0,0.00044352,30]
[331473569,1720434247661,-500.0,0.00044352,30]
[331473570,1720434247685,-500.0,0.00044352,30]
[331473571,1720434247709,-500.0,0.00044352,30]
[331473572,1720434247734,-500.0,0.00044352,30]
[331473573,1720434247758,-500.0,0.00044352,30]
[331473574,1720434247784,-500.0,0.00044352,30]
[331473575,1720434247807,-500.0,0.00044352,30]
[331473576,1720434247830,-500.0,0.00044352,30]
[331473577,1720434247852,-537.79998479,0.00044352,30]
[331473578,1720434247876,-2877.19,0.00044384,120]
[331473579,1720434247900,-151.0,0.00044411,120]
[331473580,1720434247926,-233.070819,0.00044498,117]
[331473581,1720434247949,-1250.0,0.0004452,120]
[331473582,1720434247974,-543.78506741,0.00044657,72]
[331473583,1720434248000,-500.0,0.00044676,30]
[331473584,1720434248029,-211.070817,0.00044798,115]
[331473585,1720434248054,-612.0,0.000449,30]
[331473586,1720434248079,-50000.0,0.00045,35]
[331473587,1720434248107,-50000.0,0.00045,45]
[331473588,1720434248131,-150.0,0.00045,85]
[331473589,1720434248155,-250.0,0.00045,120]
[331473590,1720434248179,-155.4302395,0.00045,120]
[331473591,1720434248202,-150.07693015,0.00045,120]
[331473592,1720434248226,-500.0,0.00045017,30]
[331473593,1720434248252,-151.0,0.00045041,120]
[331473594,1720434248277,-2376.89318,0.00045088,30]
[331473595,1720434248302,-412.0899,0.0004514,30]
[331473596,1720434248328,-233.070819,0.00045198,113]
[331473597,1720434248353,-1250.0,0.00045205,120]
[331473598,1720434248376,-500.0,0.00045224,30]
[331473599,1720434248399,-1040.0,0.00045269,30]
[331473600,1720434248422,-2376.89318,0.00045288,30]
[331473601,1720434248445,-600.0,0.00045311,120]
[331473602,1720434248469,-151.0,0.0004537,120]
[331473603,1720434248492,-2376.89318,0.00045488,30]
[331473604,1720434248518,-211.070817,0.00045498,117]
[331473605,1720434248545,-151.0,0.00045671,120]
[331473606,1720434248570,-2376.89318,0.00045688,30]
[331473607,1720434248593,-500.0,0.00045693,30]
[331473608,1720434248617,-500.0,0.00045772,30]
[331473609,1720434248641,-500.0,0.00045772,30]
[331473610,1720434248664,-500.0,0.00045772,30]
[331473611,1720434248691,-233.070819,0.00045798,115]
[331473612,1720434248715,-156.8758,0.00045888,30]
[331473613,1720434248738,-1250.0,0.0004589,120]
[331473614,1720434248765,-50000.0,0.00046,36]
[331473615,1720434248793,-50000.0,0.00046,46]
[331473616,1720434248819,-168.6,0.00046,96]
[331473617,1720434248842,-1201.43,0.00046,30]
[331473618,1720434248866,-2376.89318,0.00046088,30]
[331473619,1720434248892,-211.070817,0.00046198,113]
[331473620,1720434248916,-2376.89318,0.00046288,30]
[331473621,1720434248941,-151.0,0.00046301,120]
[331473622,1720434248965,-500.0,0.0004632,30]
[331473623,1720434248989,-500.0,0.0004632,30]
[331473624,1720434249015,-500.0,0.0004632,30]
[331473625,1720434249043,-500.0,0.00046378,30]
[331473626,1720434249071,-2376.89318,0.00046488,30]
[331473627,1720434249100,-211.070817,0.00046498,117]
[331473628,1720434249300,-302.370778,0.000465,30]
[331473629,1720434249339,-1250.0,0.00046575,120]
[331473630,1720434249364,-234.68056154,0.0004662,30]
[331473631,1720434249388,-150.0,0.0004662,30]
[331473632,1720434249412,-150.0,0.0004662,30]
[331473633,1720434249438,-150.0,0.0004662,30]
[331473634,1720434249465,-150.0,0.0004662,30]
[331473635,1720434249489,-150.0,0.0004662,30]
[331473636,1720434249515,-150.0,0.0004662,30]
[331473637,1720434249541,-150.0,0.0004662,30]
[331473638,1720434249566,-150.0,0.0004662,30]
[331473639,1720434249592,-150.0,0.0004662,30]
[331473640,1720434249618,-150.0,0.0004662,30]
[331473641,1720434249643,-298.30882485,0.0004662,30]
[331473642,1720434249667,-150.0,0.0004662,30]
[331473643,1720434249692,-150.0,0.0004662,30]
[331473644,1720434249717,-150.0,0.0004662,30]
[331473645,1720434249742,-234.68056154,0.00046672,30]
[331473646,1720434249766,-150.0,0.00046685,30]
[331473647,1720434249791,-2376.89318,0.00046688,30]
[331473648,1720434249816,-150.0,0.00046696,30]
[331473649,1720434249841,-151.0,0.00046712,120]
[331473650,1720434249865,-600.0,0.00046716,120]
[331473651,1720434249889,-150.0,0.00046718,30]
[331473652,1720434249914,-234.68056154,0.00046725,30]
[331473653,1720434249940,-150.0,0.0004675,30]
[331473654,1720434249966,-150.0,0.00046772,30]
[331473655,1720434249992,-234.68056154,0.00046777,30]
[331473656,1720434250021,-211.070817,0.00046798,115]
[331473657,1720434250048,-150.0,0.00046814,30]
[331473658,1720434250075,-150.0,0.00046815,30]
[331473659,1720434250102,-234.68056154,0.00046829,30]
[331473660,1720434250126,-150.0,0.00046849,30]
[331473661,1720434250149,-485.39633588,0.00046868,30]
[331473662,1720434250173,-500.0,0.00046868,30]
[331473663,1720434250197,-500.0,0.00046868,30]
[331473664,1720434250221,-150.0,0.00046879,30]
[331473665,1720434250245,-234.68056154,0.00046882,30]
[331473666,1720434250270,-150.0,0.00046908,30]
[331473667,1720434250295,-150.0,0.00046913,30]
[331473668,1720434250319,-150.0,0.00046925,30]
[331473669,1720434250343,-151.0,0.00046932,120]
[331473670,1720434250368,-234.68056154,0.00046934,30]
[331473671,1720434250392,-150.0,0.00046944,30]
[331473672,1720434250416,-234.68056154,0.00046986,30]
[331473673,1720434250442,-50000.0,0.00047,37]
[331473674,1720434250467,-50000.0,0.00047,47]
[331473675,1720434250492,-150.0,0.00047001,30]
[331473676,1720434250515,-150.0,0.00047009,30]
[331473677,1720434250539,-150.0,0.00047011,30]
[331473678,1720434250563,-150.0,0.00047018,30]
[331473679,1720434250587,-234.68056154,0.00047039,30]
[331473680,1720434250611,-150.0,0.00047073,30]
[331473681,1720434250634,-500.0,0.00047074,30]
[331473682,1720434250659,-150.0,0.00047077,30]
[331473683,1720434250684,-234.68056154,0.00047091,30]
[331473684,1720434250707,-150.0,0.00047109,30]
[331473685,1720434250731,-150.0,0.00047138,30]
[331473686,1720434250755,-234.68056154,0.00047143,30]
[331473687,1720434250781,-150.0,0.00047153,30]
[331473688,1720434250807,-234.68056154,0.00047196,30]
[331473689,1720434250832,-150.0,0.00047196,30]
[331473690,1720434250858,-211.070817,0.00047198,113]
[331473691,1720434250881,-150.0,0.00047203,30]
[331473692,1720434250905,-150.0,0.00047206,30]
[331473693,1720434250930,-150.0,0.00047229,30]
[331473694,1720434250955,-234.68056154,0.00047248,30]
[331473695,1720434250982,-1250.0,0.0004726,120]
[331473696,1720434251010,-150.0,0.00047268,30]
[331473697,1720434251035,-234.68056154,0.000473,30]
[331473698,1720434251059,-150.0,0.00047304,30]
[331473699,1720434251084,-150.0,0.00047306,30]
[331473700,1720434251107,-150.0,0.00047332,30]
[331473701,1720434251131,-234.68056154,0.00047353,30]
[331473702,1720434251154,-150.0,0.00047382,30]
[331473703,1720434251178,-150.0,0.00047397,30]
[331473704,1720434251203,-150.0,0.00047402,30]
[331473705,1720434251227,-234.68056154,0.00047405,30]
[331473706,1720434251253,-500.0,0.00047416,30]
[331473707,1720434251281,-303.9589244,0.00047416,30]
[331473708,1720434251309,-150.0,0.00047417,30]
[331473709,1720434251336,-234.68056154,0.00047457,30]
[331473710,1720434251364,-150.0,0.00047458,30]
[331473711,1720434251389,-150.0,0.00047462,30]
[331473712,1720434251414,-150.0,0.00047483,30]
[331473713,1720434251445,-211.070817,0.00047498,117]
[331473714,1720434251475,-150.0,0.000475,30]
[331473715,1720434251502,-234.68056154,0.00047509,30]
[331473716,1720434251528,-150.0,0.00047527,30]
[331473717,1720434251557,-150.0,0.00047534,30]
[331473718,1720434251583,-151.0,0.00047562,120]
[331473719,1720434251612,-234.68056154,0.00047562,30]
[331473720,1720434251638,-150.0,0.00047591,30]
[331473721,1720434251662,-150.0,0.00047597,30]
[331473722,1720434251687,-150.0,0.0004761,30]
[331473723,1720434251712,-234.68056154,0.00047614,30]
[331473724,1720434251737,-1040.0,0.00047652,30]
[331473725,1720434251761,-150.0,0.00047656,30]
[331473726,1720434251786,-234.68056154,0.00047666,30]
[331473727,1720434251810,-150.0,0.00047686,30]
[331473728,1720434251833,-150.0,0.00047695,30]
[331473729,1720434251857,-234.68056154,0.00047719,30]
[331473730,1720434251879,-150.0,0.00047721,30]
[331473731,1720434251903,-150.0,0.00047763,30]
[331473732,1720434252108,-234.68056154,0.00047771,30]
[331473733,1720434252132,-150.0,0.00047771,30]
[331473734,1720434252155,-500.0,0.0004778,30]
[331473735,1720434252178,-150.0,0.00047786,30]
[331473736,1720434252201,-150.0,0.00047793,30]
[331473737,1720434252226,-211.070817,0.00047798,115]
[331473738,1720434252250,-150.0,0.00047815,30]
[331473739,1720434252274,-234.68056154,0.00047823,30]
[331473740,1720434252304,-150.0,0.00047839,30]
[331473741,1720434252330,-150.0,0.0004785,30]
[331473742,1720434252354,-234.68056154,0.00047876,30]
[331473743,1720434252378,-150.0,0.00047891,30]
[331473744,1720434252402,-150.0,0.00047915,30]
[331473745,1720434252426,-150.0,0.00047915,30]
[331473746,1720434252450,-150.0,0.00047915,30]
[331473747,1720434252473,-234.68056154,0.00047928,30]
[331473748,1720434252496,-1250.0,0.00047945,120]
[331473749,1720434252519,-500.0,0.00047964,30]
[331473750,1720434252543,-150.0,0.0004798,30]
[331473751,1720434252566,-234.68056154,0.0004798,30]
[331473752,1720434252588,-150.0,0.00047988,30]
[331473753,1720434252611,-150.0,0.00047991,30]
[331473754,1720434252636,-50000.0,0.00048,38]
[331473755,1720434252662,-50000.0,0.00048,48]
[331473756,1720434252687,-234.68056154,0.00048033,30]
[331473757,1720434252711,-150.0,0.00048044,30]
[331473758,1720434252736,-151.0,0.00048055,120]
[331473759,1720434252760,-150.0,0.00048059,30]
[331473760,1720434252786,-150.0,0.00048067,30]
[331473761,1720434252813,-234.68056154,0.00048085,30]
[331473762,1720434252837,-150.0,0.00048086,30]
[331473763,1720434252861,-150.0,0.00048109,30]
[331473764,1720434252886,-234.68056154,0.00048137,30]
[331473765,1720434252910,-150.0,0.00048144,30]
[331473766,1720434252935,-150.0,0.00048174,30]
[331473767,1720434252959,-150.0,0.00048184,30]
[331473768,1720434252983,-234.68056154,0.0004819,30]
[331473769,1720434253010,-151.0,0.00048192,120]
[331473770,1720434253038,-211.070817,0.00048198,113]
[331473771,1720434253064,-150.0,0.00048214,30]
[331473772,1720434253089,-150.0,0.0004822,30]
[331473773,1720434253113,-150.0,0.00048239,30]
[331473774,1720434253137,-234.68056154,0.00048242,30]
[331473775,1720434253163,-150.0,0.00048282,30]
[331473776,1720434253189,-234.68056154,0.00048294,30]
[331473777,1720434253215,-150.0,0.00048296,30]
[331473778,1720434253240,-150.0,0.00048304,30]
[331473779,1720434253265,-234.68056154,0.00048347,30]
[331473780,1720434253290,-150.0,0.00048347,30]
[331473781,1720434253315,-150.0,0.00048347,30]
[331473782,1720434253338,-150.0,0.00048347,30]
[331473783,1720434253362,-150.0,0.00048347,30]
[331473784,1720434253387,-150.0,0.00048347,30]
[331473785,1720434253411,-150.0,0.00048368,30]
[331473786,1720434253435,-150.0,0.00048372,30]
[331473787,1720434253460,-150.0,0.00048379,30]
[331473788,1720434253484,-234.68056154,0.00048399,30]
[331473789,1720434253508,-150.0,0.00048433,30]
[331473790,1720434253532,-150.0,0.00048448,30]
[331473791,1720434253557,-234.68056154,0.00048451,30]
[331473792,1720434253582,-150.0,0.00048477,30]
[331473793,1720434253607,-500.0,0.00048496,30]
[331473794,1720434253630,-150.0,0.00048498,30]
[331473795,1720434253657,-211.070817,0.00048498,117]
[331473796,1720434253683,-234.68056154,0.00048504,30]
[331473797,1720434253708,-500.0,0.00048512,30]
[331473798,1720434253734,-150.0,0.00048524,30]
[331473799,1720434253759,-234.68056154,0.00048556,30]
[331473800,1720434253784,-150.0,0.00048563,30]
[331473801,1720434253808,-150.0,0.00048575,30]
[331473802,1720434253833,-150.0,0.00048601,30]
[331473803,1720434253858,-234.68056154,0.00048608,30]
[331473804,1720434253883,-150.0,0.00048612,30]
[331473805,1720434253908,-150.0,0.00048627,30]
[331473806,1720434253934,-1250.0,0.0004863,120]
[331473807,1720434253960,-150.0,0.00048634,30]
[331473808,1720434253987,-234.68056154,0.00048661,30]
[331473809,1720434254015,-150.0,0.00048672,30]
[331473810,1720434254040,-150.0,0.00048677,30]
[331473811,1720434254066,-150.0,0.00048692,30]
[331473812,1720434254092,-234.68056154,0.00048713,30]
[331473813,1720434254117,-150.0,0.00048753,30]
[331473814,1720434254143,-150.0,0.00048757,30]
[331473815,1720434254168,-234.68056154,0.00048765,30]
[331473816,1720434254195,-150.0,0.0004877,30]
[331473817,1720434254224,-192.070816,0.00048798,115]
[331473818,1720434254251,-234.68056154,0.00048818,30]
[331473819,1720434254278,-150.0,0.00048822,30]
[331473820,1720434254305,-151.0,0.00048822,120]
[331473821,1720434254331,-150.0,0.00048829,30]
[331473822,1720434254359,-150.0,0.00048868,30]
[331473823,1720434254386,-234.68056154,0.0004887,30]
[331473824,1720434254411,-150.0,0.00048886,30]
[331473825,1720434254437,-150.0,0.00048905,30]
[331473826,1720434254462,-234.68056154,0.00048922,30]
[331473827,1720434254485,-150.0,0.00048922,30]
[331473828,1720434254510,-150.0,0.00048951,30]
[331473829,1720434254537,-150.0,0.00048966,30]
[331473830,1720434254563,-234.68056154,0.00048975,30]
[331473831,1720434254587,-150.0,0.00048981,30]
[331473832,1720434254613,-50000.0,0.00049,39]
[331473833,1720434254641,-50000.0,0.00049,49]
[331473834,1720434254665,-5000.0,0.00049,120]
[331473835,1720434254866,-20000.0,0.00049,50]
[331473836,1720434254906,-455.08959658,0.00049,120]
[331473837,1720434254933,-150.0,0.00049011,30]
[331473838,1720434254958,-150.0,0.00049016,30]
[331473839,1720434254983,-234.68056154,0.00049027,30]
[331473840,1720434255010,-150.0,0.00049058,30]
[331473841,1720434255037,-171.66468009,0.0004906,30]
[331473842,1720434255062,-150.0,0.00049063,30]
[331473843,1720434255085,-234.68056154,0.00049079,30]
[331473844,1720434255112,-150.0,0.00049081,30]
[331473845,1720434255136,-932.94911223,0.00049096,60]
[331473846,1720434255160,-234.68056154,0.00049132,30]
[331473847,1720434255183,-150.0,0.00049134,30]
[331473848,1720434255207,-150.0,0.00049145,30]
[331473849,1720434255230,-150.0,0.00049161,30]
[331473850,1720434255254,-234.68056154,0.00049184,30]
[331473851,1720434255279,-211.070817,0.00049198,113]
[331473852,1720434255304,-150.0,0.0004921,30]
[331473853,1720434255328,-150.0,0.0004921,30]
[331473854,1720434255351,-150.0,0.0004921,30]
[331473855,1720434255375,-150.0,0.0004921,30]
[331473856,1720434255399,-150.0,0.0004921,30]
[331473857,1720434255421,-439.53490789,0.00049224,30]
[331473858,1720434255444,-234.68056154,0.00049236,30]
[331473859,1720434255467,-150.0,0.00049259,30]
[331473860,1720434255490,-150.0,0.00049275,30]
[331473861,1720434255513,-150.0,0.00049286,30]
[331473862,1720434255539,-1283.66,0.00049287,120]
[331473863,1720434255562,-1283.66,0.00049287,120]
[331473864,1720434255587,-1283.66,0.00049287,120]
[331473865,1720434255614,-1283.66,0.00049287,120]
[331473866,1720434255639,-1283.66,0.00049287,120]
[331473867,1720434255664,-1283.66,0.00049287,120]
[331473868,1720434255687,-1283.66,0.00049287,120]
[331473869,1720434255710,-1283.66,0.00049287,120]
[331473870,1720434255734,-1283.66,0.00049287,120]
[331473871,1720434255758,-1283.66,0.00049287,120]
[331473872,1720434255782,-1283.66,0.00049287,120]
[331473873,1720434255810,-1283.66,0.00049287,120]
[331473874,1720434255835,-1283.66,0.00049287,120]
[331473875,1720434255859,-1283.66,0.00049287,120]
[331473876,1720434255882,-1283.66,0.00049287,120]
[331473877,1720434255906,-1283.66,0.00049287,120]
[331473878,1720434255929,-1283.66,0.00049287,120]
[331473879,1720434255953,-1283.66,0.00049287,120]
[331473880,1720434255977,-1283.66,0.00049287,120]
[331473881,1720434256000,-1283.66,0.00049287,120]
[331473882,1720434256026,-1283.66,0.00049287,120]
[331473883,1720434256050,-1283.66,0.00049287,120]
[331473884,1720434256074,-1283.66,0.00049287,120]
[331473885,1720434256097,-1283.83807992,0.00049287,120]
[331473886,1720434256120,-234.68056154,0.00049288,30]
[331473887,1720434256142,-1000.0,0.00049315,120]
[331473888,1720434256166,-640.57,0.00049315,120]
[331473889,1720434256189,-1250.0,0.00049315,120]
[331473890,1720434256212,-749.22,0.00049315,120]
[331473891,1720434256236,-330.00749348,0.00049315,120]
[331473892,1720434256260,-1000.0,0.00049315,120]
[331473893,1720434256287,-1000.0,0.00049315,120]
[331473894,1720434256310,-1000.0,0.00049315,120]
[331473895,1720434256334,-1000.0,0.00049315,120]
[331473896,1720434256358,-1000.0,0.00049315,120]
[331473897,1720434256382,-1000.0,0.00049315,120]
[331473898,1720434256406,-1000.0,0.00049315,120]
[331473899,1720434256430,-1000.0,0.00049315,120]
[331473900,1720434256452,-1000.0,0.00049315,120]
[331473901,1720434256475,-1000.0,0.00049315,120]
[331473902,1720434256498,-1000.0,0.00049315,120]
[331473903,1720434256521,-1000.0,0.00049315,120]
[331473904,1720434256546,-1000.0,0.00049315,120]
[331473905,1720434256569,-1000.0,0.00049315,120]
[331473906,1720434256593,-1000.0,0.00049315,120]
[331473907,1720434256618,-1000.0,0.00049315,120]
[331473908,1720434256642,-1000.0,0.00049315,120]
[331473909,1720434256667,-1000.0,0.00049315,120]
[331473910,1720434256691,-2430.59,0.00049315,120]
[331473911,1720434256716,-2430.59,0.00049315,120]
[331473912,1720434256740,-2430.59,0.00049315,120]
[331473913,1720434256764,-2430.59,0.00049315,120]
[331473914,1720434256789,-2430.59,0.00049315,120]
[331473915,1720434256813,-2430.59,0.00049315,120]
[331473916,1720434256837,-2430.59,0.00049315,120]
[331473917,1720434256863,-2430.59,0.00049315,120]
[331473918,1720434256890,-2430.59,0.00049315,120]
[331473919,1720434256915,-2430.59,0.00049315,120]
[331473920,1720434256939,-2430.59,0.00049315,120]
[331473921,1720434256965,-2430.59,0.00049315,120]
[331473922,1720434256991,-2430.59,0.00049315,120]
[331473923,1720434257020,-2430.59,0.00049315,120]
[331473924,1720434257048,-2430.59,0.00049315,120]
[331473925,1720434257075,-2430.59,0.00049315,120]
[331473926,1720434257100,-2430.59,0.00049315,120]
[331473927,1720434257124,-2430.59,0.00049315,120]
[331473928,1720434257148,-2430.59,0.00049315,120]
[331473929,1720434257172,-2430.59,0.00049315,120]
[331473930,1720434257195,-2430.59,0.00049315,120]
[331473931,1720434257219,-2430.59,0.00049315,120]
[331473932,1720434257243,-2430.59,0.00049315,120]
[331473933,1720434257266,-2430.77271793,0.00049315,120]
[331473934,1720434257291,-500.0,0.00049315,30]
[331473935,1720434257315,-500.0,0.00049315,31]
[331473936,1720434257340,-500.0,0.00049315,32]
[331473937,1720434257363,-500.0,0.00049315,33]
[331473938,1720434257387,-500.0,0.00049315,34]
[331473939,1720434257593,-500.0,0.00049315,35]
[331473940,1720434257618,-500.0,0.00049315,36]
[331473941,1720434257641,-500.0,0.00049315,37]
[331473942,1720434257666,-500.0,0.00049315,38]
[331473943,1720434257689,-500.0,0.00049315,39]
[331473944,1720434257712,-500.0,0.00049315,40]
[331473945,1720434257735,-500.0,0.00049315,41]
[331473946,1720434257758,-500.0,0.00049315,42]
[331473947,1720434257785,-500.0,0.00049315,43]
[331473948,1720434257810,-500.0,0.00049315,44]
[331473949,1720434257834,-366.45300373,0.00049315,45]
[331473950,1720434257860,-500.0,0.00049315,120]
[331473951,1720434257885,-507.89595234,0.00049315,120]
[331473952,1720434257909,-606.55838221,0.00049315,120]
[331473953,1720434257933,-932.94911223,0.00049315,120]
[331473954,1720434257958,-150.0,0.0004934,30]
[331473955,1720434257982,-234.68056154,0.00049341,30]
[331473956,1720434258007,-150.0,0.00049357,30]
[331473957,1720434258035,-150.0,0.00049362,30]
[331473958,1720434258060,-234.68056154,0.00049393,30]
[331473959,1720434258084,-151.0,0.00049397,120]
[331473960,1720434258111,-150.0,0.00049404,30]
[331473961,1720434258137,-150.0,0.00049409,30]
[331473962,1720434258163,-150.0,0.00049439,30]
[331473963,1720434258189,-234.68056154,0.00049445,30]
[331473964,1720434258215,-151.0,0.00049452,120]
[331473965,1720434258240,-150.0,0.00049454,30]
[331473966,1720434258263,-150.0,0.00049469,30]
[331473967,1720434258291,-234.68056154,0.00049498,30]
[331473968,1720434258315,-150.0,0.00049498,30]
[331473969,1720434258342,-211.070817,0.00049498,117]
[331473970,1720434258366,-932.94911223,0.00049507,120]
[331473971,1720434258392,-150.0,0.00049515,30]
[331473972,1720434258417,-150.0,0.00049534,30]
[331473973,1720434258442,-4590.3,0.0004955,117]
[331473974,1720434258468,-234.68056154,0.0004955,30]
[331473975,1720434258494,-150.0,0.00049552,30]
[331473976,1720434258519,-500.0,0.00049589,120]
[331473977,1720434258544,-150.0,0.00049591,30]
[331473978,1720434258569,-150.0,0.00049599,30]
[331473979,1720434258595,-234.68056154,0.00049602,30]
[331473980,1720434258621,-150.0,0.0004965,30]
[331473981,1720434258647,-234.68056154,0.00049655,30]
[331473982,1720434258671,-150.0,0.00049663,30]
[331473983,1720434258697,-150.0,0.00049667,30]
[331473984,1720434258722,-234.68056154,0.00049707,30]
[331473985,1720434258746,-932.94911223,0.00049726,120]
[331473986,1720434258771,-5001.21916,0.00049728,30]
[331473987,1720434258798,-150.0,0.00049728,30]
[331473988,1720434258823,-150.0,0.00049743,30]
[331473989,1720434258848,-150.0,0.00049748,30]
[331473990,1720434258873,-234.68056154,0.00049759,30]
[331473991,1720434258898,-150.0,0.00049786,30]
[331473992,1720434258922,-150.0,0.00049793,30]
[331473993,1720434258950,-211.070817,0.00049798,115]
[331473994,1720434258977,-150.0,0.00049808,30]
[331473995,1720434259002,-234.68056154,0.00049812,30]
[331473996,1720434259032,-150.0,0.00049819,30]
[331473997,1720434259060,-150.0,0.00049845,30]
[331473998,1720434259085,-150.0,0.00049858,30]
[331473999,1720434259113,-500.0,0.00049863,120]
[331474000,1720434259140,-234.68056154,0.00049864,30]
[331474001,1720434259165,-150.0,0.00049896,30]
[331474002,1720434259190,-200.0,0.000499,120]